{"text_format":"1","workbook":"xlsx","n_sheets":3,"sheets":["TURNO MENSUAL","Instrucciones","Control de cambios"],"not_rendered":{"charts":0,"images":1,"macros":1,"external_links":1,"defined_names":38,"comments":0,"pivot_tables":0},"unopened":[],"bounds":{"document_bytes":16777216,"sheet_cells":100000,"rows_first":2000,"rows_last":500,"rows_between":2000,"halvings":0,"cell_chars":16384,"cell_head_chars":4096},"cells_cut":0,"cells_raw":0,"read":"whole","date_system":"1900"}

{"sheet":"TURNO MENSUAL","index":0,"n_rows":87,"n_cols":71,"rows_kept":87,"cut":false,"hidden":false,"merged":[[61,0,61,1],[55,0,55,1],[56,0,56,1],[57,0,57,1],[0,0,2,2],[58,0,58,1],[59,0,59,1],[60,0,60,1],[33,0,33,1],[7,0,7,1],[72,0,72,1],[62,0,62,1],[63,0,63,1],[64,0,64,1],[67,0,67,1],[68,0,68,1],[69,0,69,1],[65,0,65,1],[66,0,66,1],[70,0,70,1],[71,0,71,1],[12,33,13,33],[17,0,17,1],[15,33,16,33],[26,33,27,33],[20,0,20,1],[14,0,14,1],[35,33,36,33],[52,0,52,1],[53,0,53,1],[54,0,54,1],[47,33,48,33],[0,3,2,27],[0,28,0,32],[1,28,1,32],[2,28,2,32],[6,0,6,1],[2,46,9,46],[2,47,9,47],[2,48,9,48],[2,49,9,49],[3,28,3,32],[1,37,1,50],[11,0,11,1],[2,38,9,38],[3,17,4,17],[3,18,4,20],[3,23,4,24],[3,25,4,26],[9,33,10,33],[2,50,9,50],[2,39,9,39],[2,40,9,40],[2,41,9,41],[2,42,9,42],[2,43,9,43],[2,44,9,44],[2,45,9,45]]}
[null,null,null,"SERVICIOS  - Pronósticos y Alertas\nFORMATO PROGRAMACION DE TURNOS  OSPA",null,null,null,null,null,null,null,null,null,null,null,null,null,null,null,null,null,null,null,null,null,null,null,null,"Código: SPA-F003 "]
[null,null,null,null,null,null,null,null,null,null,null,null,null,null,null,null,null,null,null,null,null,null,null,null,null,null,null,null,"Versión: 05",null,null,null,null,null,null,null,null,"CONVENCIONES",null,null,null,null,null,null,null,null,null,null,null,null,null,null,null,null,null,null,null,null,null,null,null,null,null,null,null,null,null,null,null,"Enero"]
[null,null,null,null,null,null,null,null,null,null,null,null,null,null,null,null,null,null,null,null,null,null,null,null,null,null,null,null,"Fecha: 02/07/2025",null,null,null,null,null,null,null,null,null,"Funcionario","código","Incendios","Deslizamientos","Coordinacion","Datos","Meteorologia","Hidrologia","Entrenamiento","Oficina","Comision","TOTAL TURNOS","Vinculacion",null,null,null,null,null,null,null,null,null,null,null,null,null,null,null,null,null,null,"Febrero"]
[null,null,null,null,null,null,null,null,null,null,null,null,null,null,null,null,null,"MES","SEPTIEMBRE",null,null,null,null,"AÑO",null,2024,null,null,null,null,null,null,null,null,null,null,null,null,null,null,null,null,null,null,null,null,null,null,null,null,null,null,null,null,null,null,null,null,null,null,null,null,null,null,null,null,null,null,null,"Marzo"]
[]
[null,null,{"$f":"COUNTIF(C10:C73,$AJ$13)","v":0},0,0,0,0,0,0,0,0,0,0,0,0,0,0,0,0,0,0,0,0,0,0,0,0,0,0,0,0,0,0,null,null,null,null,null,null,null,null,null,null,null,null,null,null,null,null,null,null,null,null,null,null,null,null,null,null,null,null,null,null,null,null,null,null,null,null,"Abril"]
["TEMATICA",null,"FECHA"]
["INCENDIOS",null,{"$f":"DATEVALUE(CONCATENATE(\"01/\",$S$4,$Z$4))","v":"2024-09-01"},{"$f":"DATEVALUE(CONCATENATE(\"02/\",$S$4,$Z$4))","v":"2024-09-02"},{"$f":"DATEVALUE(CONCATENATE(\"03/\",$S$4,$Z$4))","v":"2024-09-03"},{"$f":"DATEVALUE(CONCATENATE(\"04/\",$S$4,$Z$4))","v":"2024-09-04"},{"$f":"DATEVALUE(CONCATENATE(\"05/\",$S$4,$Z$4))","v":"2024-09-05"},{"$f":"DATEVALUE(CONCATENATE(\"06/\",$S$4,$Z$4))","v":"2024-09-06"},{"$f":"DATEVALUE(CONCATENATE(\"07/\",$S$4,$Z$4))","v":"2024-09-07"},{"$f":"DATEVALUE(CONCATENATE(\"08/\",$S$4,$Z$4))","v":"2024-09-08"},{"$f":"DATEVALUE(CONCATENATE(\"09/\",$S$4,$Z$4))","v":"2024-09-09"},{"$f":"DATEVALUE(CONCATENATE(\"10/\",$S$4,$Z$4))","v":"2024-09-10"},{"$f":"DATEVALUE(CONCATENATE(\"11/\",$S$4,$Z$4))","v":"2024-09-11"},{"$f":"DATEVALUE(CONCATENATE(\"12/\",$S$4,$Z$4))","v":"2024-09-12"},{"$f":"DATEVALUE(CONCATENATE(\"13/\",$S$4,$Z$4))","v":"2024-09-13"},{"$f":"DATEVALUE(CONCATENATE(\"14/\",$S$4,$Z$4))","v":"2024-09-14"},{"$f":"DATEVALUE(CONCATENATE(\"15/\",$S$4,$Z$4))","v":"2024-09-15"},{"$f":"DATEVALUE(CONCATENATE(\"16/\",$S$4,$Z$4))","v":"2024-09-16"},{"$f":"DATEVALUE(CONCATENATE(\"17/\",$S$4,$Z$4))","v":"2024-09-17"},{"$f":"DATEVALUE(CONCATENATE(\"18/\",$S$4,$Z$4))","v":"2024-09-18"},{"$f":"DATEVALUE(CONCATENATE(\"19/\",$S$4,$Z$4))","v":"2024-09-19"},{"$f":"DATEVALUE(CONCATENATE(\"20/\",$S$4,$Z$4))","v":"2024-09-20"},{"$f":"DATEVALUE(CONCATENATE(\"21/\",$S$4,$Z$4))","v":"2024-09-21"},{"$f":"DATEVALUE(CONCATENATE(\"22/\",$S$4,$Z$4))","v":"2024-09-22"},{"$f":"DATEVALUE(CONCATENATE(\"23/\",$S$4,$Z$4))","v":"2024-09-23"},{"$f":"DATEVALUE(CONCATENATE(\"24/\",$S$4,$Z$4))","v":"2024-09-24"},{"$f":"DATEVALUE(CONCATENATE(\"25/\",$S$4,$Z$4))","v":"2024-09-25"},{"$f":"DATEVALUE(CONCATENATE(\"26/\",$S$4,$Z$4))","v":"2024-09-26"},{"$f":"DATEVALUE(CONCATENATE(\"27/\",$S$4,$Z$4))","v":"2024-09-27"},{"$f":"DATEVALUE(CONCATENATE(\"28/\",$S$4,$Z$4))","v":"2024-09-28"},{"$f":"IFERROR(DATEVALUE(CONCATENATE(\"29/\",$S$4,$Z$4)),\"\")","v":"2024-09-29"},{"$f":"IFERROR(DATEVALUE(CONCATENATE(\"30/\",$S$4,$Z$4)),\"\")","v":"2024-09-30"},{"$f":"IFERROR(DATEVALUE(CONCATENATE(\"31/\",$S$4,$Z$4)),\"\")","v":""},null,null,null,null,null,null,null,null,null,null,null,null,null,null,null,null,null,null,null,null,null,null,null,null,null,null,null,null,null,null,null,null,null,null,null,null,"Mayo"]
["Inicia","Termina",null,null,null,null,null,null,null,null,null,null,null,null,null,null,null,null,null,null,null,null,null,null,null,null,null,null,null,null,null,null,null,null,null,null,null,null,null,null,null,null,null,null,null,null,null,null,null,null,null,null,null,null,null,null,null,null,null,null,null,null,null,null,null,null,null,null,null,"junio"]
["0800","1700",null,null,null,null,null,null,null,null,null,null,null,null,null,null,null,null,null,null,null,null,null,null,null,null,null,null,null,null,null,null,null,{"$f":"IF($AJ$13=\",\",\"\",COUNTIF(C10:AG11,$AJ$13))","v":0},null,null,null,null,null,null,null,null,null,null,null,null,null,null,null,null,null,null,null,null,null,null,null,null,null,null,null,null,null,null,null,null,null,null,null,"Julio"]
[null,null,null,null,null,null,null,null,null,null,null,null,null,null,null,null,null,null,null,null,null,null,null,null,null,null,null,null,null,null,null,null,null,null,null,null,null,null,null,null,{"$f":"SUM(AO12:AO71)","v":0},0,0,0,0,0,0,0,null,{"$f":"SUM(AX12:AX71)","v":0},null,null,null,null,null,null,null,null,null,null,null,null,null,null,null,null,null,null,null,"Agosto"]
["DESLIZAMIENTOS",null,{"$f":"C8","v":"2024-09-01"},"2024-09-02","2024-09-03","2024-09-04","2024-09-05",{"$f":"DATEVALUE(CONCATENATE(\"06/\",$S$4,$Z$4))","v":"2024-09-06"},"2024-09-07","2024-09-08","2024-09-09","2024-09-10","2024-09-11","2024-09-12","2024-09-13","2024-09-14","2024-09-15","2024-09-16","2024-09-17","2024-09-18","2024-09-19","2024-09-20","2024-09-21","2024-09-22","2024-09-23","2024-09-24","2024-09-25","2024-09-26","2024-09-27","2024-09-28",{"$f":"IF(AE8=\"\",\"\",AE8)","v":"2024-09-29"},{"$f":"IF(AF8=\"\",\"\",AF8)","v":"2024-09-30"},{"$f":"IF(AG8=\"\",\"\",AG8)","v":""},null,null,null,null,1,"Sergio Ruiz Castro","SR",{"$f":"COUNTIF($C$10:$AG$11,$AN12)","v":0},{"$f":"COUNTIF($C$13:$AG$14,$AN12)","v":0},{"$f":"COUNTIF($C$16:$AG$17,$AN12)","v":0},{"$f":"COUNTIF($C$19:$AG$20,$AN12)","v":0},{"$f":"COUNTIF($C$22:$AG$33,$AN12)","v":0},{"$f":"COUNTIF($C$35:$AG$40,$AN12)","v":0},{"$f":"COUNTIF($C$42:$AG$43,$AN12)","v":0},{"$f":"COUNTIF($C$45:$AG$52,$AN12)","v":0},{"$f":"COUNTIF($C$62:$AG$62,$AN12)","v":0},{"$f":"SUM(AO12:AW12)","v":0},"FO",null,null,null,null,null,null,null,null,null,null,null,null,null,null,null,null,null,null,"Octubre"]
["0800","1700",null,null,null,null,null,null,null,null,null,null,null,null,null,null,null,null,null,null,null,null,null,null,null,null,null,null,null,null,null,null,null,{"$f":"IF($AJ$13=\",\",\"\",COUNTIF(C13:AG14,$AJ$13))","v":0},null,".",null,2,"Luis Alfonso López Álvarez","LA",0,0,0,0,0,0,0,0,0,{"$f":"SUM(AO13:AW13)","v":0},"FO",null,null,null,null,null,null,null,null,null,null,null,null,null,null,null,null,null,null,"Noviembre"]
[null,null,null,null,null,null,null,null,null,null,null,null,null,null,null,null,null,null,null,null,null,null,null,null,null,null,null,null,null,null,null,null,null,null,null,null,null,3,"Daniel Useche Samudio","DU",0,0,0,0,0,0,0,0,0,0,"FO"]
["COORDINACION TURNO",null,{"$f":"C12","v":"2024-09-01"},"2024-09-02","2024-09-03","2024-09-04","2024-09-05","2024-09-06","2024-09-07","2024-09-08","2024-09-09","2024-09-10","2024-09-11","2024-09-12","2024-09-13","2024-09-14","2024-09-15","2024-09-16","2024-09-17","2024-09-18","2024-09-19","2024-09-20","2024-09-21","2024-09-22","2024-09-23","2024-09-24","2024-09-25","2024-09-26","2024-09-27","2024-09-28","2024-09-29","2024-09-30","",null,null,"  ",null,4,"Cristian Dario Arango Chacón","CA",0,0,0,0,0,0,0,0,0,0,"FO"]
["0800","1700",null,null,null,null,null,null,null,null,null,null,null,null,null,null,null,null,null,null,null,null,null,null,null,null,null,null,null,null,null,null,null,{"$f":"IF($AJ$13=\",\",\"\",COUNTIF(C16:AG17,$AJ$13))","v":0},null," ",null,5,"Rodney Poveda Fernandez","RP",0,0,0,0,0,0,0,0,0,0,"FO"]
[null,null,null,null,null,null,null,null,null,null,null,null,null,null,null,null,null,null,null,null,null,null,null,null,null,null,null,null,null,null,null,null,null,null,null," ",null,6,"Carolina Valencia Monroy","CV",0,0,0,0,0,0,0,0,0,0,"FO"]
["DATOS",null,{"$f":"C15","v":"2024-09-01"},"2024-09-02","2024-09-03","2024-09-04","2024-09-05",{"$f":"DATEVALUE(CONCATENATE(\"06/\",$S$4,$Z$4))","v":"2024-09-06"},"2024-09-07","2024-09-08","2024-09-09","2024-09-10","2024-09-11","2024-09-12","2024-09-13","2024-09-14","2024-09-15","2024-09-16","2024-09-17","2024-09-18","2024-09-19","2024-09-20","2024-09-21","2024-09-22","2024-09-23","2024-09-24","2024-09-25","2024-09-26","2024-09-27","2024-09-28","2024-09-29","2024-09-30","",null,null,null,null,7,"Yira Fonseca Parga","YF",0,0,0,0,0,0,0,0,0,0,"FO"]
["0700","1600",null,null,null,null,null,null,null,null,null,null,null,null,null,null,null,null,null,null,null,null,null,null,null,null,null,null,null,null,null,null,null,null,null,null,null,8,"Ana Milena Rincon","AR",0,0,0,0,0,0,0,0,0,0,"FO"]
[null,null,null,null,null,null,null,null,null,null,null,null,null,null,null,null,null,null,null,null,null,null,null,null,null,null,null,null,null,null,null,null,null,null,null,null,null,9,"Jhon Bermudez Gonzalez","JB",0,0,0,0,0,0,0,0,0,0,"FO"]
["METEOROLOGIA",null,{"$f":"DATEVALUE(CONCATENATE(\"01/\",$S$4,$Z$4))","v":"2024-09-01"},{"$f":"DATEVALUE(CONCATENATE(\"02/\",$S$4,$Z$4))","v":"2024-09-02"},{"$f":"DATEVALUE(CONCATENATE(\"03/\",$S$4,$Z$4))","v":"2024-09-03"},{"$f":"DATEVALUE(CONCATENATE(\"04/\",$S$4,$Z$4))","v":"2024-09-04"},{"$f":"DATEVALUE(CONCATENATE(\"05/\",$S$4,$Z$4))","v":"2024-09-05"},{"$f":"DATEVALUE(CONCATENATE(\"06/\",$S$4,$Z$4))","v":"2024-09-06"},{"$f":"DATEVALUE(CONCATENATE(\"07/\",$S$4,$Z$4))","v":"2024-09-07"},{"$f":"DATEVALUE(CONCATENATE(\"08/\",$S$4,$Z$4))","v":"2024-09-08"},{"$f":"DATEVALUE(CONCATENATE(\"09/\",$S$4,$Z$4))","v":"2024-09-09"},{"$f":"DATEVALUE(CONCATENATE(\"10/\",$S$4,$Z$4))","v":"2024-09-10"},{"$f":"DATEVALUE(CONCATENATE(\"11/\",$S$4,$Z$4))","v":"2024-09-11"},{"$f":"DATEVALUE(CONCATENATE(\"12/\",$S$4,$Z$4))","v":"2024-09-12"},{"$f":"DATEVALUE(CONCATENATE(\"13/\",$S$4,$Z$4))","v":"2024-09-13"},{"$f":"DATEVALUE(CONCATENATE(\"14/\",$S$4,$Z$4))","v":"2024-09-14"},{"$f":"DATEVALUE(CONCATENATE(\"15/\",$S$4,$Z$4))","v":"2024-09-15"},"1900-01-16",{"$f":"DATEVALUE(CONCATENATE(\"17/\",$S$4,$Z$4))","v":"2024-09-17"},{"$f":"DATEVALUE(CONCATENATE(\"18/\",$S$4,$Z$4))","v":"2024-09-18"},{"$f":"DATEVALUE(CONCATENATE(\"19/\",$S$4,$Z$4))","v":"2024-09-19"},{"$f":"DATEVALUE(CONCATENATE(\"20/\",$S$4,$Z$4))","v":"2024-09-20"},{"$f":"DATEVALUE(CONCATENATE(\"21/\",$S$4,$Z$4))","v":"2024-09-21"},{"$f":"DATEVALUE(CONCATENATE(\"22/\",$S$4,$Z$4))","v":"2024-09-22"},{"$f":"DATEVALUE(CONCATENATE(\"23/\",$S$4,$Z$4))","v":"2024-09-23"},{"$f":"DATEVALUE(CONCATENATE(\"24/\",$S$4,$Z$4))","v":"2024-09-24"},{"$f":"DATEVALUE(CONCATENATE(\"25/\",$S$4,$Z$4))","v":"2024-09-25"},{"$f":"DATEVALUE(CONCATENATE(\"26/\",$S$4,$Z$4))","v":"2024-09-26"},{"$f":"DATEVALUE(CONCATENATE(\"27/\",$S$4,$Z$4))","v":"2024-09-27"},{"$f":"DATEVALUE(CONCATENATE(\"28/\",$S$4,$Z$4))","v":"2024-09-28"},{"$f":"IFERROR(DATEVALUE(CONCATENATE(\"29/\",$S$4,$Z$4)),\"\")","v":"2024-09-29"},{"$f":"IFERROR(DATEVALUE(CONCATENATE(\"30/\",$S$4,$Z$4)),\"\")","v":"2024-09-30"},{"$f":"IFERROR(DATEVALUE(CONCATENATE(\"31/\",$S$4,$Z$4)),\"\")","v":""},null,null,null,null,10,"Mauricio Torres Granada","MT",0,0,0,0,0,0,0,0,0,0,"FO"]
["0000","0600",null,null,null,null,null,null,null,null,null,null,null,null,null,null,null,null,null,null,null,null,null,null,null,null,null,null,null,null,null,null,null,null,null,null,null,11,"Lina Pinto Hernandez","LP",0,0,0,0,0,0,0,0,0,0,"FO"]
["0600","1300",null,null,null,null,null,null,null,null,null,null,null,null,null,null,null,null,null,null,null,null,null,null,null,null,null,null,null,null,null,null,null,null,null,null,null,12,"Denisse Andrea Murillo"," ",0,0,0,0,0,0,0,0,0,0,"FO"]
["0600","1300",null,null,null,null,null,null,null,null,null,null,null,null,null,null,null,null,null,null,null,null,null,null,null,null,null,null,null,null,null,null,null,null,null,null,null,13,"Maria Fany hernandez"," ",0,0,0,0,0,0,0,0,0,0,"FO"]
["1300","1900",null,null,null,null,null,null,null,null,null,null,null,null,null,null,null,null,null,null,null,null,null,null,null,null,null,null,null,null,null,null,null,null,null,null,null,14,"Gloria Arango","-",0,0,0,0,0,0,0,0,0,0,"FO"]
["1300","1900",null,null,null,null,null,null,null,null,null,null,null,null,null,null,null,null,null,null,null,null,null,null,null,null,null,null,null,null,null,null,null,null,null,null,null,15,"Ana Lucia Moreno A.","LM",0,0,0,0,0,0,0,0,0,0,"FA"]
["1900","2400",null,null,null,null,null,null,null,null,null,null,null,null,null,null,null,null,null,null,null,null,null,null,null,null,null,null,null,null,null,null,null,{"$f":"IF($AJ$13=\",\",\"\",COUNTIF(C22:AG33,$AJ$13))","v":0},null,null,null,16,"Nelsy Verdugo","NV",0,0,0,0,0,0,0,0,0,0,"FA"]
["BOLETIN AGRO 0800-1600",null,null,null,null,null,null,null,null,null,null,null,null,null,null,null,null,null,null,null,null,null,null,null,null,null,null,null,null,null,null,null,null,null,null,null,null,17,"Camilo Pedraza","CP",0,0,0,0,0,0,0,0,0,0,"FA"]
["COMITÉ PREDIC. 0800-1600",null,null,null,null,null,null,null,null,null,null,null,null,null,null,null,null,null,null,null,null,null,null,null,null,null,null,null,null,null,null,null,null,null,null,null,null,18,"Claudia Contreras","CC",0,0,0,0,0,0,0,0,0,0,"FA"]
["COMUNICADOS",null,null,null,null,null,null,null,null,null,null,null,null,null,null,null,null,null,null,null,null,null,null,null,null,null,null,null,null,null,null,null,null,null,null,null,null,19,"Adriana Tamato","AT",0,0,0,0,0,0,0,0,0,0,"FA"]
["COMITÉ HIDROLOGICO RIO B.",null,null,null,null,null,null,null,null,null,null,null,null,null,null,null,null,null,null,null,null,null,null,null,null,null,null,null,null,null,null,null,null,null,null,null,null,20,"Martha Cecila Cadena","MC",0,0,0,0,0,0,0,0,0,0,"FA"]
["BREAFING SURAMERICANO",null,null,null,null,null,null,null,null,null,null,null,null,null,null,null,null,null,null,null,null,null,null,null,null,null,null,null,null,null,null,null,null,null,null,null,null,21,"Nubia Traslaviña","NT",0,0,0,0,0,0,0,0,0,0,"FA"]
[null,null,null,null,null,null,null,null,null,null,null,null,null,null,null,null,null,null,null,null,null,null,null,null,null,null,null,null,null,null,null,null,null,null,null,null,null,22,"Araminta Vega","AV",0,0,0,0,0,0,0,0,0,0,"FA"]
["HIDROLOGIA",null,{"$f":"C18","v":"2024-09-01"},{"$f":"D18","v":"2024-09-02"},{"$f":"E18","v":"2024-09-03"},{"$f":"F18","v":"2024-09-04"},{"$f":"G18","v":"2024-09-05"},{"$f":"DATEVALUE(CONCATENATE(\"06/\",$S$4,$Z$4))","v":"2024-09-06"},{"$f":"I18","v":"2024-09-07"},"2024-09-08","2024-09-09","2024-09-10","2024-09-11","2024-09-12","2024-09-13","2024-09-14","2024-09-15","2024-09-16","2024-09-17","2024-09-18","2024-09-19","2024-09-20","2024-09-21","2024-09-22","2024-09-23","2024-09-24","2024-09-25","2024-09-26","2024-09-27","2024-09-28","2024-09-29","2024-09-30","1900-01-31",null,null,null,null,23,"Carlos Mercán","CM",0,0,0,0,0,0,0,0,0,0,"CO"]
["0000","0700",null,null,null,null,null,null,null,null,null,null,null,null,null,null,null,null,null,null,null,null,null,null,null,null,null,null,null,null,null,null,null,null,null,null,null,24,"Juan Pablo Urrego","JP",0,0,0,0,0,0,0,0,0,0,"CO"]
["0700","1300",null,null,null,null,null,null,null,null,null,null,null,null,null,null,null,null,null,null,null,null,null,null,null,null,null,null,null,null,null,null,null,{"$f":"IF($AJ$13=\",\",\"\",COUNTIF(C35:AG43,$AJ$13))","v":0},null,null,null,25,"Christian Romero","CR",0,0,0,0,0,0,0,0,0,0,"CO"]
["0700","1300",null,null,null,null,null,null,null,null,null,null,null,null,null,null,null,null,null,null,null,null,null,null,null,null,null,null,null,null,null,null,null,null,null,null,null,26,"Josúe Daza","JD",0,0,0,0,0,0,0,0,0,0,"CO"]
["1300","1900",null,null,null,null,null,null,null,null,null,null,null,null,null,null,null,null,null,null,null,null,null,null,null,null,null,null,null,null,null,null,null,null,null,null,null,27,"Alexander Villamizar","AH",{"$f":"COUNTIF($C$10:$AG$11,$AN38)","v":0},{"$f":"COUNTIF($C$13:$AG$14,$AN38)","v":0},{"$f":"COUNTIF($C$16:$AG$17,$AN38)","v":0},{"$f":"COUNTIF($C$19:$AG$20,$AN38)","v":0},0,0,0,0,0,{"$f":"SUM(AO38:AW38)","v":0},"CO"]
["1300","1900",null,null,null,null,null,null,null,null,null,null,null,null,null,null,null,null,null,null,null,null,null,null,null,null,null,null,null,null,null,null,null,null,null,null,null,28,"Juan Carlos Garzon","JC",0,0,0,0,0,0,0,0,0,0,"CO"]
["1900","0000",null,null,null,null,null,null,null,null,null,null,null,null,null,null,null,null,null,null,null,null,null,null,null,null,null,null,null,null,null,null,null,null,null,null,null,29,"Fabian Barroso","FB",0,0,0,0,0,0,0,0,0,0,"CO"]
["ENTRENAMIENTO H.",null,null,null,null,null,null,null,null,null,null,null,null,null,null,null,null,null,null,null,null,null,null,null,null,null,null,null,null,null,null,null,null,null,null,null,null,30,"Natalia Muñóz","NM",0,0,0,0,0,0,0,0,0,0,"CO"]
["0000","07000",null,null,null,null,null,null,null,null,null,null,null,null,null,null,null,null,null,null,null,null,null,null,null,null,null,null,null,null,null,null,null,null,null,null,null,31,"Benjamien Enrique Rodriguez","ER",0,0,0,0,0,0,0,0,0,0,"CO"]
["1900","0000",null,null,null,null,null,null,null,null,null,null,null,null,null,null,null,null,null,null,null,null,null,null,null,null,null,null,null,null,null,null,null,null,null,null,null,32,"Bairon Aldana","BA",0,0,0,0,0,0,0,0,0,0,"CO"]
["COORDINACION TURNO 2",null,{"$f":"C15","v":"2024-09-01"},{"$f":"D15","v":"2024-09-02"},{"$f":"E15","v":"2024-09-03"},{"$f":"F15","v":"2024-09-04"},{"$f":"G15","v":"2024-09-05"},{"$f":"DATEVALUE(CONCATENATE(\"06/\",$S$4,$Z$4))","v":"2024-09-06"},{"$f":"I15","v":"2024-09-07"},"2024-09-08","2024-09-09","2024-09-10","2024-09-11","2024-09-12","2024-09-13","2024-09-14","2024-09-15","2024-09-16","2024-09-17","2024-09-18","2024-09-19","2024-09-20","2024-09-21","2024-09-22","2024-09-23","2024-09-24","2024-09-25","2024-09-26","2024-09-27","2024-09-28","2024-09-29","2024-09-30","",null,null,null,null,33,"Maria del Mar Vasquez","MM",0,0,0,0,0,0,0,0,0,0,"CO"]
["METEOROLOGO",null,null,null,null,null,null,null,null,null,null,null,null,null,null,null,null,null,null,null,null,null,null,null,null,null,null,null,null,null,null,null,null,null,null,null,null,34,"Alexander Marcial Martínez","AM",0,0,0,0,0,0,0,0,0,0,"CO"]
["METEOROLOGO",null,null,null,null,null,null,null,null,null,null,null,null,null,null,null,null,null,null,null,null,null,null,null,null,null,null,null,null,null,null,null,null,null,null,null,null,35,"David Garzón Casas","DC",0,0,0,0,0,0,0,0,0,0,"CO"]
[null,null,null,null,null,null,null,null,null,null,null,null,null,null,null,null,null,null,null,null,null,null,null,null,null,null,null,null,null,null,null,null,null,null,null,null,null,36,"Leydi Rodriguez","RC",0,0,0,0,0,0,0,0,0,0,"CO"]
[null,null,null,null,null,null,null,null,null,null,null,null,null,null,null,null,null,null,null,null,null,null,null,null,null,null,null,null,null,null,null,null,null,{"$f":"IF($AJ$13=\",\",\"\",COUNTIF(C49:AG52,$AJ$13))","v":0},null,null,null,36,"Paola Bulla","PB",0,0,0,0,0,0,0,0,0,0,"CO"]
[null,null,null,null,null,null,null,null,null,null,null,null,null,null,null,null,null,null,null,null,null,null,null,null,null,null,null,null,null,null,null,null,null,null,null,null,null,37,"Mirován Sverko","MS",0,0,0,0,0,0,0,0,0,0,"CO"]
[null,null,null,null,null,null,null,null,null,null,null,null,null,null,null,null,null,null,null,null,null,null,null,null,null,null,null,null,null,null,null,null,null,null,null,null,null,38,"William Alarcón","WA",0,0,0,0,0,0,0,0,0,0,"CO"]
[null,null,null,null,null,null,null,null,null,null,null,null,null,null,null,null,null,null,null,null,null,null,null,null,null,null,null,null,null,null,null,null,null,null,null,null,null,39,"Santiago Delgado","SD",0,0,0,0,0,0,0,0,0,0,"CO"]
[null,null,null,null,null,null,null,null,null,null,null,null,null,null,null,null,null,null,null,null,null,null,null,null,null,null,null,null,null,null,null,null,null,null,null,null,null,40,"William Riaño","WR",0,0,0,0,0,0,0,0,0,0,"CO"]
["CONTRATISAS  LIBRES",null,{"$f":"C44","v":"2024-09-01"},"2024-09-02","2024-09-03","2024-09-04","2024-09-05","2024-09-06","2024-09-07","2024-09-08","2024-09-09","2024-09-10","2024-09-11","2024-09-12","2024-09-13","2024-09-14","2024-09-15","2024-09-16","2024-09-17","2024-09-18","2024-09-19","2024-09-20","2024-09-21","2024-09-22","2024-09-23","2024-09-24","2024-09-25","2024-09-26","2024-09-27","2024-09-28","2024-09-29","2024-09-30","",null,null,null,null,41,"Victoria Camacho","VC",0,0,0,0,0,0,0,0,0,0,"CO"]
[null,null,null,null,null,null,null,null,null,null,null,null,null,null,null,null,null,null,null,null,null,null,null,null,null,null,null,null,null,null,null,null,null,null,null,null,null,42,"Vivian Garzon","-",0,0,0,0,0,0,0,0,0,0,"CO"]
[null,null,null,null,null,null,null,null,null,null,null,null,null,null,null,null,null,null,null,null,null,null,null,null,null,null,null,null,null,null,null,null,null,{"$f":"IF($AJ$13=\",\",\"\",COUNTIF(C65:AG65,$AJ$13))","v":0},null,null,null,43,"Paul Ramirez","-",0,0,0,0,0,0,0,0,0,0,"CO"]
[null,null,null,null,null,null,null,null,null,null,null,null,null,null,null,null,null,null,null,null,null,null,null,null,null,null,null,null,null,null,null,null,null,{"$f":"IF($AJ$13=\",\",\"\",COUNTIF(C69:AG69,$AJ$13))","v":0},null,null,null,44,"Diego Rojas","-",0,0,0,0,0,0,0,0,0,0,"CO"]
[null,null,null,null,null,null,null,null,null,null,null,null,null,null,null,null,null,null,null,null,null,null,null,null,null,null,null,null,null,null,null,null,null,{"$f":"IF($AJ$13=\",\",\"\",COUNTIF(C70:AG70,$AJ$13))","v":0},null,null,null,45,"Juan Carlos Loaiza","JL",null,null,null,null,null,null,null,null,null,null,"CA"]
[null,null,null,null,null,null,null,null,null,null,null,null,null,null,null,null,null,null,null,null,null,null,null,null,null,null,null,null,null,null,null,null,null,{"$f":"IF($AJ$13=\",\",\"\",COUNTIF(C71:AG71,$AJ$13))","v":0},null,null,null,46,null,null,0,0,0,0,{"$f":"COUNTIF($C$22:$AG$33,$AN58)","v":0},{"$f":"COUNTIF($C$35:$AG$40,$AN58)","v":0},{"$f":"COUNTIF($C$42:$AG$43,$AN58)","v":0},{"$f":"COUNTIF($C$45:$AG$52,$AN58)","v":0},{"$f":"COUNTIF($C$62:$AG$62,$AN58)","v":0},{"$f":"SUM(AO58:AW58)","v":0}]
[null,null,null,null,null,null,null,null,null,null,null,null,null,null,null,null,null,null,null,null,null,null,null,null,null,null,null,null,null,null,null,null,null,{"$f":"IF($AJ$13=\",\",\"\",COUNTIF(C72:AG72,$AJ$13))","v":0},{"$f":"IF($AJ$13=\",\",\"\",COUNTIF(D57:AH57,$AJ$13))","v":0},null,null,47,null,"-",0,0,0,0,0,0,0,0,0,0," "]
["NO DISPÓNIBLE",null,{"$f":"C44","v":"2024-09-01"},"2024-09-02","2024-09-03","2024-09-04","2024-09-05","2024-09-06","2024-09-07","2024-09-08","2024-09-09","2024-09-10","2024-09-11","2024-09-12","2024-09-13","2024-09-14","2024-09-15","2024-09-16","2024-09-17","2024-09-18","2024-09-19","2024-09-20","2024-09-21","2024-09-22","2024-09-23","2024-09-24","2024-09-25","2024-09-26","2024-09-27","2024-09-28","2024-09-29","2024-09-30","",{"$f":"IF($AJ$13=\",\",\"\",COUNTIF(C73:AG73,$AJ$13))","v":0},{"$f":"IF($AJ$13=\",\",\"\",COUNTIF(D58:AH58,$AJ$13))","v":0},null,null,48,null,"-",0,0,0,0,0,0,0,0,0,0," "]
["COMPENSATORIOS",null,null,null,null,null,null,null,null,null,null,null,null,null,null,null,null,null,null,null,null,null,null,null,null,null,null,null,null,null,null,null,null,null,null,null,null,49,null,"-",0,0,0,0,0,0,0,0,0,0," "]
["PERMISO",null,null,null,null,null,null,null,null,null,null,null,null,null,null,null,null,null,null,null,null,null,null,null,null,null,null,null,null,null,null,null,null,null,null,null,null,50,null,"-",0,0,0,0,0,0,0,0,0,0," "]
["VACACIONES",null,null,null,null,null,null,null,null,null,null,null,null,null,null,null,null,null,null,null,null,null,null,null,null,null,null,null,null,null,null,null,null,null,null,null,null,null,null,"-",0,0,0,0,0,0,0,0,0,0," "]
["COMISION",null,null,null,null,null,null,null,null,null,null,null,null,null,null,null,null,null,null,null,null,null,null,null,null,null,null,null,null,null,null,null,null,null,null,null,null,"FO","Funcionario Ospa"]
["INCAPACIDAD",null,null,null,null,null,null,null,null,null,null,null,null,null,null,null,null,null,null,null,null,null,null,null,null,null,null,null,null,null,null,null,null,null,null,null,null,"CO","Contratista Ospa"]
["CAPACITACION",null,null,null,null,null,null,null,null,null,null,null,null,null,null,null,null,null,null,null,null,null,null,null,null,null,null,null,null,null,null,null,null,null,null,null,null,"FA","Funcionario Apoyo"]
["LIBRE",null,null,null,null,null,null,null,null,null,null,null,null,null,null,null,null,null,null,null,null,null,null,null,null,null,null,null,null,null,null,null,null,null,null,null,null,"CA","Contratista Apoyo"]
["OTRO"]
[]
[]
[null,null,null,null,null,null,null,null,null,null,null,null,null,null,null,null,null,null,null,null,null,null,null,null,null,null,null,null,null,null,null,null,null,null,null,null,null,null,null,null,null,null,null,null,null,null,null,null,null,null,null,null,null,null,null,null,null,null,null,null,null,null,null,null,null,null,null,null,null,null,"Columna1"]
[]
[]
[]
[]
[]
[null,null,null,null,null,null,null,null,null,null,null,null,null,null,null,null,null,null,null,null,null,null,null,null,null,null,null,null,null,null,null,null,null,null,null,null,null,null,null,null,null,null,null,null,null,null,null,null,null,null,null,null,null,null,null,null,null,null,null,null,null,null,null,null,null,null,null,null,null,null,"01"]
[null,null,null,null,null,null,null,null,null,null,null,null,null,null,null,null,null,null,null,null,null,null,null,null,null,null,null,null,null,null,null,null,null,null,null,null,null,null,null,null,null,null,null,null,null,null,null,null,null,null,null,null,null,null,null,null,null,null,null,null,null,null,null,null,null,null,null,null,null,null,"02"]
[null,null,null,null,null,null,null,null,null,null,null,null,null,null,null,null,null,null,null,null,null,null,null,null,null,null,null,null,null,null,null,null,null,null,null,null,null,null,null,null,null,null,null,null,null,null,null,null,null,null,null,null,null,null,null,null,null,null,null,null,null,null,null,null,null,null,null,null,null,"Programados","03"]
[null,null,null,null,null,null,null,null,null,null,null,null,null,null,null,null,null,null,null,null,null,null,null,null,null,null,null,null,null,null,null,null,null,null,null,null,null,null,null,null,null,null,null,null,null,null,null,null,null,null,null,null,null,null,null,null,null,null,null,null,null,null,null,null,null,null,null,null,null,"Cumplidos","04"]
[null,null,null,null,null,null,null,null,null,null,null,null,null,null,null,null,null,null,null,null,null,null,null,null,null,null,null,null,null,null,null,null,null,null,null,null,null,null,null,null,null,null,null,null,null,null,null,null,null,null,null,null,null,null,null,null,null,null,null,null,null,null,null,null,null,null,null,null,null,null,"05"]
[null,null,null,null,null,null,null,null,null,null,null,null,null,null,null,null,null,null,null,null,null,null,null,null,null,null,null,null,null,null,null,null,null,null,null,null,null,null,null,null,null,null,null,null,null,null,null,null,null,null,null,null,null,null,null,null,null,null,null,null,null,null,null,null,null,null,null,null,null,null,"06"]
[null,null,null,null,null,null,null,null,null,null,null,null,null,null,null,null,null,null,null,null,null,null,null,null,null,null,null,null,null,null,null,null,null,null,null,null,null,null,null,null,null,null,null,null,null,null,null,null,null,null,null,null,null,null,null,null,null,null,null,null,null,null,null,null,null,null,null,null,null,null,"07"]
[null,null,null,null,null,null,null,null,null,null,null,null,null,null,null,null,null,null,null,null,null,null,null,null,null,null,null,null,null,null,null,null,null,null,null,null,null,null,null,null,null,null,null,null,null,null,null,null,null,null,null,null,null,null,null,null,null,null,null,null,null,null,null,null,null,null,null,null,null,null,"08"]
[null,null,null,null,null,null,null,null,null,null,null,null,null,null,null,null,null,null,null,null,null,null,null,null,null,null,null,null,null,null,null,null,null,null,null,null,null,null,null,null,null,null,null,null,null,null,null,null,null,null,null,null,null,null,null,null,null,null,null,null,null,null,null,null,null,null,null,null,null,null,"09"]
[null,null,null,null,null,null,null,null,null,null,null,null,null,null,null,null,null,null,null,null,null,null,null,null,null,null,null,null,null,null,null,null,null,null,null,null,null,null,null,null,null,null,null,null,null,null,null,null,null,null,null,null,null,null,null,null,null,null,null,null,null,null,null,null,null,null,null,null,null,null,"10"]
[null,null,null,null,null,null,null,null,null,null,null,null,null,null,null,null,null,null,null,null,null,null,null,null,null,null,null,null,null,null,null,null,null,null,null,null,null,null,null,null,null,null,null,null,null,null,null,null,null,null,null,null,null,null,null,null,null,null,null,null,null,null,null,null,null,null,null,null,null,null,"11"]

{"sheet":"Instrucciones","index":1,"n_rows":20,"n_cols":4,"rows_kept":20,"cut":false,"hidden":false,"merged":[[0,0,2,0],[0,1,2,2],[0,3,0,7],[1,3,1,7],[2,3,2,7]]}
[null,"FORMATOS PROGRAMACION DE TURNOS",null,"Código: SPA-F003 "]
[null,null,null,"Versión: 05"]
[null,null,null,"Fecha: 02/07/2025"]
[null,"TEMATICA"]
[null,"Se diligencia respectivamente sea la programación en la tematica a realziar turno \n*Incendios\n*Deslizamientos\n*Coordinación Turno\n*Datos\n*Meteorologia\n*Hidrologia\n*Coordinación Turno 2\n*Contratistas Libres\n* No dispoble"]
[]
[null,"Mes"]
[null,"Se diligencia el mes al que corresponde la programación"]
[]
[null,"Año"]
[null,"Se diligencia el año al que corresponde la programación"]
[]
[null,"FECHA"]
[null,"Se diligencia las iniciales conforme las conveciones en las fechas que se realizará el turno "]
[]
[null,"Importe"]
[null,"Se diligencia una descripción Importante de la participación de la actividad"]
[]
[null,"Convenciones"]
[null,"Se diligencia el nombre del funcionario o contratista y se registra el codigo de la convencia"]

{"sheet":"Control de cambios","index":2,"n_rows":10,"n_cols":4,"rows_kept":10,"cut":false,"hidden":false,"merged":[[0,0,2,0],[0,1,2,2]]}
[null,"FORMATO PROGRAMACION DE TURNOS",null,"Código: SPA-F003 "]
[null,null,null,"Versión: 05"]
[null,null,null,"Fecha: 02/07/2025"]
[]
[null,"Versión"," Fecha"," Descripción"]
[null,1,"2019-09-30","Creación del documento"]
[null,2,"2022-05-11","Cambio de formato  teniendo en cuenta que el anterior lleva una celda protegida la cual debería ser editable y que corresponde a la fecha del mes programado."]
[null,3,"2022-10-18","Actualización de formato "]
[null,4,"2024-09-10","Actualización de formato y ajuste de colores para dar cumplimiento a la accesibilidad. "]
[null,5,"2025-07-02","Se actualiza el Formato de acuerdo con el memorando enviado por la OAP memorando 20251100097283 lineamientos para la actualización documental en el marco de la implementación del aplicativo suite visión. El código pasa de m-s-p-f003 a spa-f003."]